bitfinex/quotes_ETHUSD_20241215
["timestamp","ask_amount","ask_price","bid_price","bid_amount"]
[1734243584779,3.20180505,3890.2,3889.5,0.07259302]
[1734243585584,3.20180505,3890.2,3889.6,0.89168709]
[1734243585792,3.20180505,3890.2,3889.7,0.07255784]
[1734243586165,3.20180505,3890.2,3889.4,1.85607678]
[1734243586478,3.20180505,3890.2,3889.5,2.22924018]
[1734243586785,3.20180505,3890.2,3889.6,0.89169607]
[1734243586991,3.20180505,3890.2,3889.7,0.07255784]
[1734243587503,3.20180505,3890.1,3889.7,0.07255784]
[1734243587665,0.85179278,3890.0,3889.4,2.86485699]
[1734243587868,1.0723231,3890.1,3889.8,0.07254025]
[1734243588067,1.0723231,3890.1,3889.4,2.86485699]
[1734243588267,1.92455391,3890.1,3889.9,0.07252266]
[1734243588506,1.92455391,3890.1,3889.5,2.2297851]
[1734243588507,1.92455391,3890.1,3889.4,1.85607678]
[1734243588693,1.92455391,3890.1,3890.0,0.07250508]
[1734243589178,1.92455391,3890.1,3889.4,1.85607678]
[1734243589496,1.92455391,3890.1,3889.5,2.94969203]
[1734243589699,1.92455391,3890.1,3889.6,0.89202692]
[1734243589908,1.0723231,3890.2,3889.8,0.7653]
[1734243590202,1.0723231,3890.2,3889.9,0.07255016]
[1734243590384,1.9247414,3890.2,3889.9,0.07255016]
[1734243590740,0.8524183,3890.1,3889.9,0.07255016]
[1734243591044,6.94065228,3890.6,3889.9,0.07255016]
[1734243591045,1.0723231,3890.3,3889.9,0.07255016]
[1734243591338,1.0723231,3890.4,3890.0,0.8919893]
[1734243591636,1.0723231,3890.4,3890.1,0.07243249]
[1734243591767,1.92479441,3890.3,3890.1,0.07243249]
[1734243591962,0.85247131,3890.2,3889.8,0.7653]
[1734243592202,1.0723231,3890.3,3889.9,0.96443303]
[1734243592402,0.85247412,3890.2,3889.9,0.07246766]
[1734243592711,1.0723231,3890.4,3889.9,0.07246766]
[1734243593002,1.0723231,3890.4,3890.1,0.7653]
[1734243593201,2.13118996,3890.5,3890.1,0.7653]
[1734243593202,0.85247598,3890.3,3890.1,0.7653]
[1734243593421,1.0723231,3890.5,3890.2,0.0723764]
[1734243593882,1.92478376,3890.5,3890.1,0.7653]
[1734243594402,3.20347475,3890.4,3890.2,0.0723764]
[1734243594569,2.13104776,3890.3,3890.2,0.0723764]
[1734243595968,1.0723231,3890.4,3890.2,0.0723764]
[1734243596165,1.92478376,3890.4,3890.2,0.0723764]
[1734243596617,2.13104776,3890.3,3890.2,0.0723764]
[1734243597335,0.85246066,3890.3,3890.2,0.0723764]
[1734243597506,1.0723231,3890.6,3890.3,0.7955]
[1734243597694,1.0723231,3890.7,3890.4,0.19144593]
[1734243598032,1.0723231,3890.8,3890.4,0.26378717]
[1734243598395,0.85259526,3890.7,3890.4,0.26378717]
[1734243598595,1.0723231,3890.9,3890.4,0.26378717]
[1734243598828,1.92471855,3890.9,3890.4,0.07234124]
[1734243599307,2.13098863,3890.8,3890.4,0.07234124]
[1734243599506,1.0723231,3890.9,3890.4,0.07234124]
[1734243600760,1.0723231,3890.7,3890.4,0.07234124]
[1734243600972,1.0723231,3890.6,3890.4,0.07234124]
[1734243601103,3.91429863,3890.6,3890.0,0.7955]
[1734243601308,3.20278105,3890.5,3890.0,0.7955]
[1734243601506,0.85218318,3890.4,3890.1,0.07190451]
[1734243601807,1.0723231,3890.5,3890.1,0.07190451]
[1734243602214,2.13039945,3890.6,3890.1,0.07190451]
[1734243602215,0.85215978,3890.4,3890.1,0.07190451]
[1734243602417,1.0723231,3890.6,3890.1,0.07190451]
[1734243602620,3.2027415,3890.6,3890.1,0.07190451]
[1734243603353,3.2027415,3890.5,3890.1,0.07190451]
[1734243603645,2.57054,3890.3,3890.1,0.07190451]
[1734243603802,0.85216736,3890.2,3890.1,0.07190451]
[1734243604010,2.13037143,3890.2,3889.7,0.8046]
[1734243604447,1.0723231,3890.3,3889.8,0.07205076]
[1734243604968,1.0723231,3890.3,3889.7,0.8046]
[1734243604969,3.20290908,3890.3,3889.9,0.07203317]
[1734243605112,0.85223439,3890.2,3889.9,0.07203317]
[1734243605308,1.0723231,3890.3,3889.7,0.8046]
[1734243605515,5.77342767,3890.3,3889.7,0.8046]
[1734243605759,2.13059457,3890.2,3889.8,0.07205076]
[1734243605962,3.20291767,3890.2,3889.7,0.8046]
[1734243606113,0.85221018,3890.1,3889.7,0.8046]
[1734243606444,0.85219459,3890.0,3889.8,0.07205076]
[1734243606675,1.0723231,3890.1,3889.8,0.07205076]
[1734243606879,1.0723231,3890.1,3889.7,0.8046]
[1734243607374,1.0723231,3890.1,3889.8,0.07205076]
[1734243607736,1.0723231,3890.1,3889.7,0.8046]
[1734243607914,1.0723231,3890.1,3889.8,0.07205076]
[1734243608251,1.0723231,3890.1,3889.7,0.8046]
[1734243608728,1.0723231,3890.1,3889.8,0.07205076]
[1734243609143,1.0723231,3890.1,3889.7,0.8046]
[1734243609335,3.2028273,3890.1,3889.7,0.8046]
[1734243609536,3.2028273,3890.1,3889.8,0.07205076]
[1734243609733,0.73792326,3890.0,3889.8,0.07205076]
[1734243609944,0.85220168,3889.9,3889.4,0.7601]
[1734243610343,1.0723231,3890.1,3889.5,0.07210353]
[1734243610555,3.20214772,3890.1,3889.5,0.07210353]
[1734243612228,5.77279772,3890.1,3889.5,0.07210353]
[1734243612378,2.12982462,3890.0,3889.5,0.07210353]
[1734243613281,4.70053462,3890.0,3889.5,0.07210353]
[1734243613482,2.57069,3890.0,3889.5,0.07210353]
[1734243613686,0.85187183,3889.9,3889.5,0.07210353]
[1734243613954,2.57069,3890.0,3889.5,0.07210353]
[1734243614093,0.85186977,3889.9,3889.5,0.07210353]
[1734243614420,2.57069,3890.0,3889.5,0.07210353]
[1734243615287,0.85191631,3889.9,3889.5,0.07210353]
[1734243615937,3.42267631,3889.9,3889.5,0.07210353]
[1734243616088,2.57076,3889.9,3889.5,0.07210353]
[1734243616287,1.0723231,3890.1,3889.5,0.07210353]
[1734243616540,3.20206503,3890.1,3889.5,0.07210353]
[1734243622669,0.85173208,3890.0,3889.5,0.07210353]
[1734243622872,1.0723231,3890.1,3889.5,0.07210353]
[1734243623178,3.20165491,3890.1,3889.5,0.07210353]
[1734243625357,6.63798875,3890.1,3889.5,0.07210353]
[1734243625519,2.57076,3889.9,3889.5,0.07210353]
[1734243625718,2.12914319,3889.8,3889.5,0.07210353]
[1734243625922,2.12914319,3889.8,3889.0,0.7601]
[1734243626135,3.20146629,3889.8,3889.1,0.0729054]
[1734243626608,2.57082,3889.9,3889.1,0.0729054]
[1734243626609,0.85167572,3889.7,3889.1,0.0729054]
[1734243626777,3.6431431,3889.9,3889.1,0.0729054]
[1734243626981,2.12886863,3889.8,3889.1,0.0729054]
[1734243627884,0.85154745,3889.8,3889.2,0.769]
[1734243628040,1.0723231,3890.0,3889.2,0.769]
[1734243628246,3.2010471,3890.0,3889.3,0.07287022]
[1734243629126,5.7717371,3890.0,3889.3,0.07287022]
[1734243629366,0.8514896,3889.9,3889.3,0.07287022]
[1734243629588,2.12855519,3889.9,3889.3,0.07287022]
[1734243630253,1.0723231,3890.0,3889.4,0.769]
[1734243630794,2.12832058,3890.1,3889.5,0.07284187]
[1734243630795,1.0723231,3890.1,3889.5,0.07284187]
[1734243630931,3.6428931,3890.2,3889.4,0.769]
[1734243631132,0.85134989,3890.1,3889.4,0.769]
[1734243631355,2.12834548,3890.1,3889.5,0.07283503]
[1734243631586,1.0723231,3890.2,3889.5,0.07283503]
[1734243631746,3.20067643,3890.2,3889.5,0.07283503]
[1734243632171,3.20067643,3890.2,3889.5,0.10510657]
[1734243633482,0.8513415,3890.1,3889.5,0.10510657]
[1734243633770,1.0723231,3890.2,3889.5,0.10510657]
[1734243634206,2.12809688,3890.2,3889.5,0.10510657]
[1734243634642,2.12809688,3890.2,3889.6,0.769]
[1734243635064,2.12809688,3890.2,3889.8,0.769]
[1734243635264,0.52506555,3890.3,3889.8,0.769]
[1734243635575,0.85120603,3890.2,3889.9,0.10505132]
[1734243636279,0.52506555,3890.3,3889.9,0.10505132]
[1734243636577,0.52506555,3890.3,3889.8,0.769]
[1734243636788,0.52506555,3890.3,3889.9,0.10512834]
[1734243636998,1.0723231,3890.4,3889.8,0.769]
[1734243637291,1.0723231,3890.4,3889.9,0.10512834]
[1734243637654,1.0723231,3890.4,3889.8,0.769]
[1734243638082,1.0723231,3890.4,3889.9,0.10512834]
[1734243638494,1.0723231,3890.4,3889.8,0.769]
[1734243638988,1.0723231,3890.4,3889.9,0.10512834]
[1734243639294,1.0723231,3890.5,3889.8,0.769]
[1734243639791,1.0723231,3890.5,3889.9,0.10512834]
[1734243640221,1.92367002,3890.5,3889.9,0.10512834]
[1734243640519,0.85134692,3890.4,3889.9,0.10512834]
[1734243640694,1.0723231,3890.5,3889.9,0.10512834]
[1734243641458,3.200767,3890.5,3889.9,0.10512834]
[1734243641667,0.7804,3890.4,3889.9,0.10512834]
[1734243641873,6.55170788,3890.4,3889.9,0.10512834]
[1734243642206,6.55170788,3890.4,3889.5,0.8031]
[1734243642207,3.20085788,3890.3,3889.5,0.8031]
[1734243642529,3.20085788,3890.3,3889.6,0.10516159]
[1734243644007,4.26220993,3890.3,3889.6,0.10516159]
[1734243644172,5.77144788,3890.2,3889.6,0.10516159]
[1734243644373,3.20129513,3890.1,3889.6,0.10516159]
[1734243646082,2.12897203,3890.0,3889.6,0.10516159]
[1734243646411,1.0723231,3890.2,3889.6,0.10516159]
[1734243646708,3.20194228,3890.1,3889.6,0.10516159]
[1734243647008,0.85184767,3890.0,3889.6,0.10516159]
[1734243647314,1.0723231,3890.1,3889.6,0.10516159]
[1734243647800,1.92415623,3890.1,3889.6,0.10516159]
[1734243648415,3.20190593,3890.0,3889.6,0.10516159]
[1734243648710,1.0723231,3890.1,3889.6,0.10516159]
[1734243649079,1.92430441,3890.1,3889.6,0.10516159]
[1734243649297,2.12995328,3890.0,3889.6,0.10516159]
[1734243649496,0.85198131,3889.9,3889.6,0.10516159]
[1734243649698,1.0723231,3890.1,3889.6,0.10516159]
[1734243649899,1.92439412,3890.1,3889.6,0.10516159]
[1734243650606,1.0723231,3890.0,3889.6,0.10516159]
[1734243650825,1.92439412,3890.1,3889.6,0.10516159]
[1734243651133,1.0723231,3890.2,3889.7,0.805]
[1734243651519,1.0723231,3890.2,3889.8,0.10515775]
[1734243651831,1.0723231,3890.2,3889.7,0.805]
[1734243651832,0.85213434,3890.1,3889.7,0.805]
[1734243652034,1.0723231,3890.3,3889.8,0.10515775]
[1734243652331,2.13035246,3890.2,3889.7,0.805]
[1734243652538,2.13028107,3890.1,3889.9,0.10513933]
[1734243652835,0.85214098,3890.0,3889.7,0.805]
[1734243653047,1.0723231,3890.2,3889.7,0.805]
[1734243653760,3.20261315,3890.1,3889.4,0.805]
[1734243653964,2.13029005,3890.0,3889.5,0.89174499]
[1734243654264,0.85211602,3889.9,3889.5,0.89174499]
[1734243654471,1.0723231,3890.0,3889.5,0.89174499]
[1734243654628,3.54687639,3889.9,3889.4,0.805]
[1734243654832,2.13017745,3889.8,3889.4,0.805]
[1734243655049,3.20250055,3889.8,3889.4,0.805]
[1734243655424,0.85207098,3889.7,3889.4,0.805]
[1734243655630,1.41669894,3889.9,3889.4,0.805]
[1734243655831,2.12978912,3889.8,3889.4,0.805]
[1734243656514,2.63615988,3889.8,3889.4,0.805]
[1734243656758,0.85191565,3889.7,3889.4,0.805]
[1734243657920,0.50637076,3889.8,3889.4,0.805]
[1734243658253,0.85187375,3889.7,3889.4,0.805]
[1734243660928,0.50637076,3889.8,3889.4,0.805]
[1734243662363,1.0723231,3889.9,3889.4,0.805]
[1734243662557,3.20175688,3889.9,3889.4,0.805]
[1734243664543,3.20175688,3889.9,3889.5,0.10540123]
[1734243665643,2.12934852,3889.8,3889.5,0.10540123]
[1734243665847,1.0723231,3889.9,3889.5,0.10540123]
[1734243666660,3.2014645,3889.9,3889.5,0.10540123]
[1734243667757,2.1291414,3889.8,3889.5,0.10540123]
[1734243667977,0.85146922,3889.7,3889.5,0.10540123]
[1734243668183,1.0723231,3889.9,3889.5,0.10540123]
[1734243668676,3.20096992,3889.9,3889.5,0.10540123]
[1734243669779,2.1287582,3889.8,3889.5,0.10540123]
[1734243669967,0.85150328,3889.7,3889.5,0.10540123]
[1734243670170,1.0723231,3889.9,3889.5,0.10540123]
[1734243670560,3.20115915,3889.9,3889.5,0.10540123]
[1734243671246,2.12883605,3889.8,3889.5,0.10540123]
[1734243671446,0.85153442,3889.7,3889.5,0.10540123]
[1734243671691,1.0723231,3889.9,3889.5,0.10540123]
[1734243672181,3.20123801,3889.9,3889.5,0.10540123]
[1734243672884,2.12891491,3889.8,3889.5,0.10540123]
[1734243673084,1.0723231,3889.9,3889.5,0.10540123]
[1734243673463,3.2015111,3889.9,3889.5,0.10540123]
[1734243675049,2.12938568,3889.8,3889.5,0.10540123]
[1734243675252,1.0723231,3889.9,3889.5,0.10540123]
[1734243675693,3.20172436,3889.9,3889.5,0.10540123]
[1734243676187,2.12940126,3889.8,3889.5,0.10540123]
[1734243676391,0.8517605,3889.7,3889.5,0.10540123]
[1734243676688,1.0723231,3889.9,3889.5,0.10540123]
[1734243676859,3.20148733,3889.8,3889.5,0.10540123]
[1734243677050,0.85166569,3889.7,3889.5,0.10540123]
[1734243677255,1.0723231,3889.9,3889.5,0.10540123]
[1734243677693,3.20148438,3889.9,3889.5,0.10540123]
[1734243678056,1.0723231,3889.8,3889.5,0.10540123]
[1734243678281,2.12916128,3889.9,3889.5,0.10540123]
[1734243678282,0.85166451,3889.7,3889.5,0.10540123]
[1734243678481,1.0723231,3889.9,3889.5,0.10540123]
[1734243678680,3.2011751,3889.8,3889.5,0.10540123]
[1734243678900,2.12881435,3889.7,3889.5,0.10540123]
[1734243679101,1.0723231,3889.8,3889.5,0.10540123]
[1734243679370,1.92386252,3889.8,3889.1,0.7996]
[1734243679582,0.85153942,3889.7,3889.6,0.10535621]
[1734243679806,0.85153942,3889.7,3889.2,1.04633734]
[1734243680009,1.0723231,3889.9,3889.6,0.10536172]
[1734243680171,0.52487784,3889.8,3889.5,0.7996]
[1734243680353,0.52487784,3889.8,3889.7,0.10534329]
[1734243680554,0.52487784,3889.8,3889.6,0.10536172]
[1734243680761,0.52487784,3889.8,3889.5,0.7996]
[1734243680959,0.52487784,3889.8,3889.7,0.10533613]
[1734243681196,0.52487784,3889.8,3889.6,0.10535455]
[1734243681361,0.52487784,3889.8,3889.5,0.7996]
[1734243681560,1.0723231,3889.9,3889.7,0.10534329]
[1734243681796,1.0723231,3889.9,3889.6,0.10535455]
[1734243681958,1.0723231,3890.0,3889.8,0.10531771]
[1734243682155,3.20118495,3890.0,3889.7,0.10534329]
[1734243682356,3.20118495,3889.9,3889.5,0.7996]
[1734243682580,3.20118495,3889.8,3889.5,0.7996]
[1734243682893,0.85150059,3889.7,3889.5,0.7996]
[1734243683101,1.0723231,3889.9,3889.5,0.7996]
[1734243683302,1.0723231,3889.9,3889.6,0.10536172]
[1734243683774,1.0723231,3889.9,3889.5,0.7996]
[1734243684209,1.0723231,3889.9,3889.6,0.10536172]
[1734243684607,1.0723231,3889.9,3889.5,0.7996]
[1734243684897,1.0723231,3889.9,3889.6,0.10535455]
[1734243685267,1.0723231,3889.9,3889.5,0.7996]
[1734243685469,1.0723231,3889.9,3889.6,0.10536172]
[1734243685673,1.0723231,3889.9,3889.5,0.7996]
[1734243685868,1.0723231,3889.9,3889.6,0.10536172]
[1734243686204,1.0723231,3889.9,3889.5,0.7996]
[1734243686503,1.0723231,3889.9,3889.6,0.10535455]
[1734243687379,1.92382885,3889.9,3889.6,0.10535455]
[1734243688171,0.85150575,3889.8,3889.6,0.10535455]
[1734243688374,1.0723231,3889.9,3889.6,0.10535455]
[1734243689000,0.8517465,3889.8,3889.6,0.10535455]
[1734243689210,1.0723231,3889.9,3889.6,0.10535455]
[1734243689903,0.8517553,3889.8,3889.6,0.10535455]
[1734243690090,1.0723231,3889.9,3889.6,0.10535455]
[1734243690471,0.85179935,3889.8,3889.6,0.10535455]
[1734243690678,1.0723231,3890.0,3889.6,0.10535455]
[1734243690880,1.92417146,3890.0,3889.6,0.10535455]
[1734243691410,3.201944,3889.9,3889.6,0.10535455]
[1734243691711,0.85184836,3889.8,3889.6,0.10535455]
[1734243692007,1.0723231,3890.0,3889.6,0.10535455]
[1734243692210,1.924202,3890.0,3889.6,0.10535455]
[1734243692510,3.20202035,3889.9,3889.6,0.10535455]
[1734243692701,0.8518789,3889.8,3889.6,0.10535455]
[1734243692895,1.0723231,3890.0,3889.6,0.10535455]
[1734243693099,1.92415357,3890.0,3889.6,0.10535455]
[1734243693415,2.88358101,3890.1,3889.6,0.10535455]
[1734243693416,3.20189927,3889.9,3889.6,0.10535455]
[1734243693713,2.12957617,3889.8,3889.6,0.10535455]
[1734243693874,0.85183047,3889.7,3889.6,0.10535455]
[1734243694379,1.0723231,3889.8,3889.6,0.10535455]
[1734243694591,2.66199212,3889.8,3889.6,0.10535455]
[1734243694804,0.85183047,3889.7,3889.6,0.10535455]
[1734243695117,1.0723231,3889.8,3889.6,0.10535455]
[1734243695315,1.92415357,3889.8,3889.6,0.10535455]
[1734243695611,3.20192237,3889.8,3889.2,0.8061]
[1734243695812,3.20192237,3889.8,3889.7,0.10536363]
[1734243696015,3.76558814,3889.8,3889.2,0.8061]
[1734243696317,2.12964237,3889.7,3889.3,0.8920148]
[1734243696515,3.20196547,3889.7,3889.3,0.10543731]
[1734243696880,3.20196547,3889.7,3889.2,0.8061]
[1734243697117,3.20196547,3889.7,3889.3,0.10543731]
[1734243697523,3.20196547,3889.7,3889.2,0.8061]
[1734243697815,2.12993626,3889.6,3889.4,0.10551242]
[1734243697980,0.8519745,3889.5,3889.3,0.10553085]
[1734243698185,0.8519745,3889.5,3889.2,0.8061]
[1734243698186,1.0723231,3889.7,3889.5,0.105494]
[1734243698500,0.85195049,3889.6,3889.2,0.8061]
[1734243699387,1.92427359,3889.6,3889.3,0.8923654]
[1734243699606,1.92427359,3889.6,3889.2,0.8061]
[1734243699818,1.92427359,3889.6,3889.3,0.89236845]
[1734243700018,1.92427359,3889.6,3889.2,0.8061]
[1734243700342,1.92427359,3889.6,3889.3,0.89236843]
[1734243700488,1.92427359,3889.6,3889.2,0.8061]
[1734243700819,1.0723231,3889.6,3889.2,0.8061]
[1734243700986,1.0723231,3889.6,3889.3,0.89239436]
[1734243701188,1.92453146,3889.6,3889.2,0.8061]
[1734243701394,1.92453146,3889.6,3889.3,0.89239516]
[1734243701598,1.92453146,3889.6,3889.2,0.8061]
[1734243701823,1.92453146,3889.6,3889.3,0.89237624]
[1734243702010,1.92453146,3889.6,3889.2,0.8061]
[1734243702195,1.0723231,3889.6,3889.2,0.8061]
[1734243702398,1.0723231,3889.6,3889.3,0.89237338]
[1734243702593,1.92449555,3889.6,3889.2,0.8061]
[1734243702820,0.85215815,3889.5,3889.3,0.89235846]
[1734243703015,1.0723231,3889.6,3889.2,0.8061]
[1734243703219,1.0723231,3889.6,3889.3,0.89236314]
[1734243703406,1.92447396,3889.6,3889.2,0.8061]
[1734243703611,1.92447396,3889.6,3889.3,0.89234627]
[1734243703789,1.92447396,3889.6,3889.2,0.8061]
[1734243703982,3.20270026,3889.6,3889.2,0.8061]
[1734243705398,3.20270026,3889.6,3889.0,1.07597678]
[1734243705604,3.20270026,3889.6,3889.1,2.23079747]
[1734243705804,2.13037716,3889.5,3889.2,0.89231899]
[1734243705997,0.85205401,3889.4,3889.0,1.07597678]
[1734243706200,1.0723231,3889.6,3889.1,2.23080455]
[1734243706404,5.77353641,3889.5,3888.9,1.85127678]
[1734243706608,0.84896634,3889.4,3889.0,2.2308192]
[1734243706803,1.0723231,3889.5,3889.1,0.89232851]
[1734243707006,1.0723231,3889.5,3888.9,0.7753]
[1734243707226,1.0723231,3889.5,3889.0,2.23086633]
[1734243707434,1.0723231,3889.5,3889.1,0.89234653]
[1734243707603,2.35037198,3889.5,3888.9,0.7753]
[1734243707803,2.35037198,3889.5,3889.0,2.23073131]
[1734243708003,2.35037198,3889.5,3888.9,0.7753]
[1734243708307,2.35037198,3889.5,3889.0,2.23072488]
[1734243708520,2.35037198,3889.5,3888.9,0.7753]
[1734243708833,2.87280589,3889.5,3889.0,2.23055746]
[1734243709041,1.27804888,3889.4,3888.9,0.7753]
[1734243709216,1.27804888,3889.4,3889.0,0.89222397]
[1734243709543,1.27804888,3889.4,3889.1,0.10566673]
[1734243710035,1.27804888,3889.4,3888.9,0.7753]
[1734243710226,1.27804888,3889.4,3889.0,0.89216889]
[1734243710429,1.27804888,3889.4,3888.9,0.7753]
[1734243710609,1.27804888,3889.4,3889.0,0.99780619]
[1734243710810,1.27804888,3889.4,3889.0,0.10568516]
[1734243711415,1.59475701,3889.5,3889.0,0.10568516]
[1734243711619,1.27762861,3889.4,3889.0,0.10568516]
[1734243712316,1.59475701,3889.5,3889.0,0.10568516]
[1734243714614,2.57099,3889.6,3889.0,0.10568516]
[1734243714615,1.0723231,3889.6,3889.0,0.30138135]
[1734243714822,1.0723231,3889.6,3889.1,1.71103558]
[1734243715143,1.0723231,3889.7,3889.2,0.10582988]
[1734243715305,2.34984667,3889.7,3889.2,0.10582988]
[1734243715835,2.34984667,3889.6,3889.2,0.10582988]
[1734243716036,1.27764863,3889.5,3889.2,0.10582988]
[1734243716241,1.0723231,3889.6,3889.2,0.10582988]
[1734243717139,1.0723231,3889.7,3889.2,0.10582988]
[1734243717345,2.34997726,3889.7,3889.2,0.10582988]
[1734243717705,2.34997726,3889.7,3889.4,1.04633734]
[1734243718017,1.0723231,3890.0,3889.5,0.92487461]
[1734243718405,1.0223231,3890.1,3889.5,0.92487461]
[1734243718604,2.29988689,3890.1,3889.5,0.92487461]
[1734243719040,2.81374627,3890.1,3889.5,0.92487461]
[1734243719329,1.27756379,3890.0,3889.5,0.10577461]
[1734243719642,1.27756379,3890.0,3889.2,2.94141412]
[1734243719805,1.27756379,3890.0,3889.3,2.22935518]
[1734243720138,1.27756379,3890.0,3889.4,2.22935518]
[1734243720344,1.27756379,3890.0,3889.3,0.10572892]
[1734243720640,1.27756379,3890.0,3889.5,0.10571358]
[1734243720816,1.27756379,3890.0,3889.5,0.8191]
[1734243721014,3.08448938,3890.1,3889.6,0.10569515]
[1734243721213,1.27674486,3890.0,3889.6,0.10569515]
[1734243721730,0.51385938,3890.1,3889.6,0.10569515]
[1734243722057,5.08687155,3890.0,3889.6,0.10569515]
[1734243722340,1.27671508,3889.9,3889.2,0.8191]
[1734243722541,1.27671508,3889.9,3889.7,0.1054203]
[1734243722729,1.27671508,3889.9,3889.2,0.8191]
[1734243722930,1.27671508,3889.9,3889.8,0.10540188]
[1734243723124,1.27671508,3889.9,3889.2,0.8191]
[1734243723323,1.27671508,3889.9,3889.3,0.89172267]
[1734243723630,1.27671508,3889.9,3889.3,0.99722383]
[1734243723816,1.27671508,3889.9,3889.3,0.10550116]
[1734243724017,0.51385938,3890.1,3889.4,2.2292125]
[1734243724216,0.51385938,3890.1,3889.5,0.891685]
[1734243724422,0.51385938,3890.1,3889.5,0.10546431]
[1734243724852,0.51385938,3890.1,3889.3,1.65102887]
[1734243725144,0.51385938,3890.1,3889.4,2.22905367]
[1734243725325,0.51385938,3890.1,3889.5,1.71072147]
[1734243725514,0.51385938,3890.1,3889.5,0.8191]
[1734243725715,0.51385938,3890.1,3889.6,0.10544589]
[1734243726162,0.7704,3890.0,3889.6,0.10544589]
[1734243726551,0.7704,3890.0,3889.3,0.60469153]
[1734243726725,0.7704,3890.0,3889.7,0.1054203]
[1734243727047,0.7704,3890.0,3889.2,5.94141412]
[1734243727207,0.51385938,3890.1,3889.8,0.10540188]
[1734243727415,0.85099182,3890.0,3889.2,5.94141412]
[1734243727620,0.85099182,3890.0,3889.9,0.10538346]
[1734243727833,0.85099182,3890.0,3889.2,5.94141412]
[1734243728014,0.85099182,3890.0,3889.3,2.22874553]
[1734243728352,0.85099182,3890.0,3889.4,2.22874553]
[1734243728536,0.85099182,3890.0,3889.5,0.89149821]
[1734243728734,0.85099182,3890.0,3889.5,0.10545714]
[1734243729148,0.85099182,3890.0,3889.2,1.89507678]
[1734243729377,1.58709977,3890.1,3889.6,0.10543872]
[1734243729517,2.78106449,3890.0,3889.2,0.8191]
[1734243729722,0.85107438,3889.9,3889.3,2.33415993]
[1734243729924,1.58709977,3890.1,3889.3,0.10549399]
[1734243730160,2.1278523,3890.0,3889.3,0.10549399]
[1734243730979,2.1278523,3890.0,3889.4,0.89144259]
[1734243731320,2.1278523,3890.0,3889.5,0.10544998]
[1734243732014,1.58709977,3890.1,3889.2,0.8191]
[1734243732015,0.51385938,3890.1,3889.2,2.94141412]
[1734243732218,0.51385938,3890.1,3889.6,0.10543155]
[1734243732459,0.51385938,3890.1,3889.3,1.01523593]
[1734243732637,0.51385938,3890.1,3889.7,0.10541313]
[1734243732835,0.51385938,3890.1,3889.2,2.94141412]
[1734243733142,0.51385938,3890.1,3889.3,4.31703539]
[1734243733474,0.51385938,3890.1,3889.4,3.02458657]
[1734243733782,0.51385938,3890.1,3889.5,1.79306461]
[1734243733919,0.51385938,3890.1,3889.5,0.90174998]
[1734243735957,0.51385938,3890.1,3889.6,0.89119913]
[1734243736114,0.51385938,3890.1,3889.5,0.90174998]
[1734243736314,0.51385938,3890.1,3889.6,0.89114854]
[1734243736553,0.51385938,3890.1,3889.7,0.10541313]
[1734243737240,0.51385938,3890.1,3889.5,0.7963]
[1734243737442,0.51385938,3890.1,3889.8,0.10538371]
[1734243737762,0.51385938,3890.1,3889.9,0.1053653]
[1734243738393,0.51385938,3890.1,3890.0,0.10534688]
[1734243738739,0.51385938,3890.1,3889.5,0.7963]
[1734243739059,0.51385938,3890.1,3890.0,0.10536121]
[1734243739367,0.51385938,3890.1,3890.0,0.10536838]
[1734243739523,0.51385938,3890.1,3889.5,0.7963]
[1734243739853,0.51385938,3890.1,3889.6,1.54203255]
[1734243740151,0.51385938,3890.1,3889.6,0.65105122]
[1734243745575,0.51385938,3890.1,3889.6,0.10544205]
[1734243748285,3.08449938,3890.1,3889.6,0.10544205]
[1734243748445,0.7541,3890.0,3889.6,0.10544205]
[1734243748965,0.7541,3890.0,3889.2,0.785]
[1734243748966,0.7541,3890.0,3889.7,0.10540763]
[1734243749342,0.7541,3890.0,3889.2,0.8107096]
[1734243749543,0.7541,3890.0,3889.3,0.10548132]
[1734243753083,0.51385938,3890.1,3889.4,3.01221116]
[1734243753379,0.51385938,3890.1,3889.5,0.99632894]
[1734243753584,0.51385938,3890.1,3889.5,0.10544448]
[1734243755787,0.51385938,3890.1,3889.5,1.15178182]
[1734243755988,1.07324039,3890.4,3889.6,2.23443022]
[1734243756289,1.82734039,3890.6,3889.7,0.89104636]
[1734243756490,1.82734039,3890.6,3889.7,0.99645399]
[1734243756491,2.12800785,3890.5,3889.7,0.99645399]
[1734243756787,2.12800785,3890.5,3889.8,0.89104636]
[1734243756951,0.85120314,3890.5,3889.8,0.89104636]
[1734243757153,1.82734039,3890.6,3889.9,0.1053708]
[1734243757382,0.85114058,3890.5,3889.9,0.1053708]
[1734243757564,1.35522429,3890.5,3889.9,0.1053708]
[1734243757765,0.50408371,3890.5,3889.7,0.44878599]
[1734243757978,0.50408371,3890.5,3890.0,0.10535238]
[1734243758188,0.50408371,3890.5,3889.8,0.6485494]
[1734243758390,0.50408371,3890.5,3890.1,0.10533396]
[1734243758578,0.50408371,3890.5,3889.8,0.6485494]
[1734243758780,0.50408371,3890.5,3890.2,0.10531554]
[1734243758978,0.50408371,3890.5,3889.7,0.44878599]
[1734243759176,0.50408371,3890.5,3890.3,0.10529713]
[1734243759373,0.50408371,3890.5,3889.8,0.59271101]
[1734243759782,0.50408371,3890.5,3889.9,0.1053708]
[1734243761268,0.8514224,3890.4,3889.9,0.1053708]
[1734243761969,0.50408371,3890.5,3889.9,0.1053708]
[1734243762375,0.50408371,3890.5,3889.9,0.40872588]
[1734243762577,0.50408371,3890.5,3890.0,0.785]
[1734243762769,1.07324039,3890.7,3890.0,0.785]
[1734243762986,1.07324039,3890.7,3890.1,0.10522396]
[1734243763198,0.85152388,3890.6,3890.1,0.10522396]
[1734243763400,1.07324039,3890.7,3890.1,0.10522396]
[1734243763605,1.07324039,3890.8,3890.1,0.39145064]
[1734243763910,1.07324039,3890.8,3890.2,0.89131494]
[1734243763911,2.12893565,3890.8,3890.2,0.89131494]
[1734243764196,2.12893565,3890.8,3890.3,0.10518713]
[1734243764404,4.90376234,3890.9,3890.3,0.10518713]
[1734243764704,2.12863582,3890.8,3890.3,0.10518713]
[1734243764880,2.12863582,3890.8,3890.1,0.28622668]
[1734243765077,2.12863582,3890.8,3890.4,0.10501685]
[1734243765406,4.90376234,3890.9,3890.5,0.10499844]
[1734243765630,0.85137542,3890.8,3890.2,0.34968959]
[1734243765782,1.07324039,3891.0,3890.6,0.10498002]
[1734243766116,2.35993531,3891.2,3890.3,0.785]
[1734243766117,1.82734039,3891.2,3890.3,0.785]
[1734243766283,1.35242827,3891.1,3890.4,1.50217563]
[1734243766481,0.50119772,3891.1,3890.4,0.61138504]
[1734243766721,0.50119772,3891.1,3890.5,0.10455285]
[1734243767018,1.82734039,3891.2,3890.5,0.10455285]
[1734243767315,0.7541,3891.2,3890.5,0.10455285]
[1734243767683,0.7541,3891.2,3890.6,0.10453444]
[1734243768121,1.57695695,3891.3,3890.4,1.04633734]